[Event "Superbet Rapid Poland 2022"]
[Site "Warsaw"]
[Date "2022.05.21"]
[Round "8.1"]
[White "Korobov, Anton"]
[Black "Wojtaszek, Radoslaw"]
[Result "0-1"]
[ECO "B92"]
[WhiteElo "2671"]
[BlackElo "2696"]
[Annotator "TA"]
[PlyCount "104"]
[EventDate "2022.05.19"]
[EventType "tourn"]
[EventCountry "POL"]
[SourceTitle "playchess.com"]
[Source "ChessBase"]
[SourceQuality "1"]
[TimeControl "1500+10"]

{[%evp 18,104,19,-13,-4,-12,-3,-55,-34,-53,-40,-88,-93,-86,-75,-91,-64,-68,-57,-60,-62,-63,-74,-60,-10,-81,-83,-66,-74,-76,-80,-180,-177,-304,-120,-133,-133,-181,-177,-177,-168,-173,-173,-172,-163,-189,-116,-175,-158,-211,-202,-220,-163,-179,-179,-168,-165,-164,-161,-185,-185,-195,-182,-222,-215,-218,-223,-278,-279,-277,-275,-274,-263,-264,-275,-267,-262,-305,-318,-307,-291,-577,-575,-502,-489,-464,-419,-6412,-6045]} 1. e4 {[%emt 0:00:02]} c5 {[%emt 0:00:02]} 2. Nf3 {[%emt 0:00:05]} d6 {[%emt 0:00:02]} 3. d4 {[%emt 0:00:04]} cxd4 {[%emt 0:00:01]} 4. Nxd4 {[%emt 0:00:02]} Nf6 {[%emt 0:00:02]} 5. Nc3 {[%emt 0:00:05]} a6 {[%emt 0:00:02]} 6. Be2 {[%emt 0:00:02]} e5 {[%emt 0:00:03]} 7. Nb3 {[%emt 0:00:05]} Be7 {[%emt 0:00:02]} 8. O-O {[%emt 0:00:05]} O-O {[%emt 0:00:04]} 9. Kh1 {[%emt 0:00:06]} Nc6 {[%emt 0:00:13]} 10. f4 {[%emt 0:01:06]} b5 {[%emt 0:00:16] B92: Sicilian Najdorf: 6 Be2.} 11. Bf3 {[%emt 0:01:26]} Bb7 {[%emt 0:00:17]} 12. Qe1 {[%emt 0:01:34]} (12. Nd5 $11) 12... Nd4 {[%emt 0:03:01] Black is slightly better.} 13. Nxd4 {[%emt 0:04:14]} exd4 {[%emt 0:00:01]} 14. Nd1 {[%emt 0:00:20] [#]} (14. Ne2 $15) 14... Re8 $146 {[%emt 0:00:51][%cal Of6e4]} ({Predecessor:} 14... Qc7 15. c3 dxc3 16. Nxc3 Rfe8 17. Be3 b4 18. Na4 Bxe4 19. Bxe4 Nxe4 20. Qxb4 d5 {0-1 (38) Adamczyk,W (1539)-Blanco Gramajo,C (2547) Chessfriend.com 2003}) 15. Nf2 {[%emt 0:02:49]} Bf8 $1 {[%emt 0:02:21]} 16. Qd1 {[%emt 0:01:27]} Nxe4 {[%emt 0:01:50]} 17. Qxd4 {[%emt 0:00:11][%cal Rf2e4]} d5 {[%emt 0:00:03] White must now prevent ...Bc5.} 18. Nd3 {[%emt 0:01:39] Inhibits Bc5.} Rc8 {[%emt 0:00:17]} 19. c3 {[%emt 0:00:51]} Qh4 {[%emt 0:01:28]} 20. Kg1 {[%emt 0:00:37]} Nc5 {[%emt 0:00:03]} (20... Rc4 $15 21. Qa7 Qe7) 21. Nf2 {[%emt 0:01:03]} (21. Bd2 $11 {keeps the balance.}) 21... Ne6 {[%emt 0:00:24]} 22. Qd2 {[%emt 0:00:14]} Bc5 {[%emt 0:00:39]} 23. Kh1 {[%emt 0:00:51]} Bd6 {[%emt 0:02:11][%cal Rd6f4] Black is more active.} 24. Nd3 {[%emt 0:01:38]} (24. Qd1 $17) 24... Ng5 $1 $19 {[%emt 0:00:30]} 25. Ne1 {[%emt 0:03:22] [#]} (25. Qd1 $142) 25... Bxf4 $2 {[%emt 0:02:13]} 26. Qxf4 $17 {[%emt 0:00:05]} Rxe1 $40 {[%emt 0:00:02][%cal Re1f1][%mdl 128] Black attacks with force.} 27. Be3 {[%emt 0:00:51]} (27. Kg1 $17 {was called for.} Rxf1+ 28. Kxf1 Nxf3 29. Qxf3) 27... Qxf4 {[%emt 0:01:15] Dancing on a razor blade.} 28. Bxf4 {[%emt 0:00:02] [#] This bishop pair is nice.} Rxa1 {[%emt 0:00:02]} 29. Rxa1 {[%emt 0:00:02]} Nxf3 {[%emt 0:00:02]} 30. gxf3 $19 {[%emt 0:00:02][%mdl 4096] Endgame KRB-KRB} d4 $1 {[%emt 0:00:02]} 31. cxd4 {[%emt 0:00:39]} Bxf3+ {[%emt 0:00:02]} 32. Kg1 {[%emt 0:00:01] [#]} Rc2 $1 {[%emt 0:01:00]} 33. d5 {[%emt 0:00:56]} (33. b4 $17) 33... g5 {[%emt 0:00:04]} ({Worse is} 33... Bxd5 34. Rd1 g5 35. Be5 $17) 34. Be5 {[%emt 0:00:14]} Rc5 {[%emt 0:00:41]} ({Inferior is} 34... Bxd5 35. Rd1 f6 36. Bxf6 $17) 35. Re1 {[%emt 0:01:18]} Rxd5 {[%emt 0:00:33]} 36. Bc3 {[%emt 0:00:03][%cal Re1e8]} h6 {[%emt 0:00:57]} 37. Kf2 {[%emt 0:00:20]} Bg4 {[%emt 0:01:11]} 38. Re8+ {[%emt 0:00:21]} Kh7 {[%emt 0:00:01]} 39. a3 {[%emt 0:00:26]} Be6 {[%emt 0:00:37]} 40. Bb4 {[%emt 0:00:09]} Rf5+ {[%emt 0:01:10]} 41. Ke3 {[%emt 0:00:11]} g4 {[%emt 0:00:44]} 42. Ra8 {[%emt 0:00:11]} Rf3+ {[%emt 0:00:07]} 43. Ke4 {[%emt 0:01:05]} Rf2 {[%emt 0:00:05][%csl LRb2,LRh2]} 44. Bd6 {[%emt 0:00:19]} Re2+ {[%emt 0:00:23]} ({Avoid the trap} 44... Rxb2 $2 45. Rxa6 h5 46. a4 $19) 45. Kd3 {[%emt 0:00:21]} Rxb2 {[%emt 0:00:09]} 46. Rxa6 {[%emt 0:00:03]} h5 {[%emt 0:00:07][%cal Bh6h5,Bh5h4,Bh4g3,Bg3g2][%mdl 32]} 47. Ke3 {[%emt 0:00:13]} h4 {[%emt 0:00:14][%cal Og4g3] Inhibits Bg3.} 48. Ra8 {[%emt 0:00:06]} Rb3+ {[%emt 0:01:04]} 49. Kd4 $2 {[%emt 0:00:24]} (49. Ke4) 49... g3 {[%emt 0:00:45]} 50. hxg3 {[%emt 0:00:10]} hxg3 {[%emt 0:00:11] Hoping for ...g2.} 51. Be5 {[%emt 0:00:43]} f6 {[%emt 0:00:09]} 52. Bf4 {[%emt 0:00:12]} (52. Bxg3 $142 Rxg3 53. Ra6) 52... g2 {[%emt 0:00:21] Weighted Error Value: White=0.45/Black=0.11 (very precise)} 0-1

[Event "Superbet Rapid Poland 2022"]
[Site "Warsaw"]
[Date "2022.05.21"]
[Round "8.2"]
[White "So, Wesley"]
[Black "Rapport, Richard"]
[Result "1-0"]
[ECO "E94"]
[WhiteElo "2766"]
[BlackElo "2776"]
[Annotator "TA"]
[PlyCount "97"]
[EventDate "2022.05.19"]
[EventType "tourn"]
[EventCountry "POL"]
[SourceTitle "playchess.com"]
[Source "ChessBase"]
[SourceQuality "1"]
[TimeControl "1500+10"]

{[%evp 20,97,74,45,52,45,55,41,33,30,34,44,27,3,4,21,7,16,17,0,0,0,0,-8,0,-70,-68,-83,-6,-20,-32,-39,-31,-23,-16,-121,-83,-89,-82,-107,-100,-141,-68,-67,-14,-32,-17,-36,77,65,135,107,62,-67,-78,-71,-61,-81,-68,-150,-161,-220,-247,-195,-112,-315,-277,-256,1103,294,1648,1635,1853,1822,1653,1620,29973,1444,29991,1174]} 1. d4 {[%emt 0:00:03]} Nf6 {[%emt 0:00:02]} 2. c4 {[%emt 0:00:03]} g6 {[%emt 0:00:03]} 3. Nc3 {[%emt 0:00:02]} Bg7 {[%emt 0:00:02]} 4. e4 {[%emt 0:00:02]} d6 {[%emt 0:00:01]} 5. Nf3 {[%emt 0:00:04]} O-O {[%emt 0:00:02]} 6. Be2 {[%emt 0:00:01]} e5 {[%emt 0:00:02]} 7. O-O {[%emt 0:00:03]} Na6 {[%emt 0:00:02]} 8. Be3 {[%emt 0:00:04]} c6 {[%emt 0:00:02]} 9. d5 {[%emt 0:00:05]} Ng4 {[%emt 0:00:04]} 10. Bg5 {[%emt 0:00:03]} f6 {[%emt 0:00:01]} 11. Bd2 {[%emt 0:00:05]} f5 {[%emt 0:00:06] E94: King's Indian: Classical: 6 Be2 e5 7 0-0: Various Black 7th moves.} 12. a3 $5 {[%emt 0:02:18][%mdl 4] [#] Leaves trodden paths.} f4 $146 {[%emt 0:00:56]} ({Predecessor:} 12... Nf6 13. b4 c5 14. Rb1 h6 15. Nh4 Nxe4 16. Nxe4 Qxh4 17. Nxd6 Rd8 18. Nxc8 Raxc8 19. Qa4 {0-1 (44) Shen,Y (2413)-Huang,Q (2465) Khanty-Mansiysk 2012}) 13. dxc6 {[%emt 0:02:41]} bxc6 {[%emt 0:00:02] White is slightly better.} 14. b4 {[%emt 0:00:01]} Nc7 {[%emt 0:00:36]} 15. Rc1 {[%emt 0:01:12]} Kh8 {[%emt 0:00:34]} 16. Rc2 {[%emt 0:01:56]} Nh6 {[%emt 0:01:01]} 17. Bc1 {[%emt 0:00:29]} Nf7 {[%emt 0:01:21]} 18. Rd2 {[%emt 0:00:08]} Qe7 {[%emt 0:01:10]} 19. Qa4 {[%emt 0:00:55]} Bd7 {[%emt 0:02:49]} 20. Rfd1 {[%emt 0:00:15]} Rfd8 {[%emt 0:00:41]} 21. Qa5 {[%emt 0:04:25]} Ne6 {[%emt 0:00:24]} 22. a4 {[%emt 0:00:03]} (22. Bb2 $11) 22... g5 $15 {[%emt 0:00:54]} 23. h3 {[%emt 0:00:09]} h5 {[%emt 0:00:34]} (23... Nd4 $1 $17 24. Nxd4 exd4 25. Rxd4 Bxd4 26. Rxd4 Qe5 27. Qxe5+ dxe5) 24. Nh2 $11 {[%emt 0:00:23]} Nd4 {[%emt 0:00:04]} 25. Bxh5 {[%emt 0:00:26]} Nb3 {[%emt 0:00:07][%csl LRa5,LRd2]} 26. Qa6 {[%emt 0:00:03]} Rdb8 {[%emt 0:01:11] Strongly threatening ...Rb6.} 27. Rb2 {[%emt 0:01:20]} (27. c5 $1 $11 {keeps the balance.}) 27... Rxb4 $17 {[%emt 0:01:31]} 28. c5 {[%emt 0:00:01]} Nxc5 {[%emt 0:00:09]} 29. Qe2 {[%emt 0:00:02]} a5 {[%emt 0:01:42]} (29... Nxa4 $6 30. Nxa4 Rxa4 31. Bxf7 Qxf7 32. Rb7 $11) 30. Bg6 {[%emt 0:01:58]} Nh6 {[%emt 0:01:09]} ({Much worse is} 30... Nxa4 $6 31. Qh5+ Kg8 32. Nxa4 Rxa4 33. Bd2 $11 (33. Rb7 Nd8 $15)) (30... Be6 $17 31. Qh5+ Kg8 32. Qh7+ Kf8) 31. Qh5 $15 {[%emt 0:02:42]} Nb3 {[%emt 0:01:05] Against Rbd2} (31... Nxa4 32. Nxa4 Rxa4 33. Rb7 $16) ({Black should play} 31... Kg8 $15 32. Rbd2 Rc4) 32. Rb1 {[%emt 0:00:17]} Nd4 {[%emt 0:00:35]} 33. Ba3 {[%emt 0:00:02]} Rc4 {[%emt 0:00:13]} (33... Rbb8 $15 {keeps the upper hand.}) 34. Ne2 $1 $16 {[%emt 0:00:10]} Rxa4 {[%emt 0:00:29]} (34... Be8 $1 $14 35. Nxd4 exd4) 35. Nxd4 {[%emt 0:01:43]} exd4 {[%emt 0:00:03]} (35... Rxa3 $2 36. Ndf3 Kg8 37. Nxg5 $18) 36. Bb2 {[%emt 0:00:11] White is more active.} (36. Rd3 $1 $14) 36... c5 $15 {[%emt 0:03:01]} 37. Nf3 {[%emt 0:00:01]} g4 {[%emt 0:00:18][%cal Bg5g4,Bg4h3][%mdl 32]} 38. Ng5 {[%emt 0:02:55]} Rf8 {[%emt 0:00:44] Against Nf7+} 39. Nh7 {[%emt 0:00:05]} (39. Bc1 $15) 39... gxh3 $1 $17 {[%emt 0:03:20] aiming for ...Bg4.} 40. Nxf8 {[%emt 0:00:32] [#]} (40. f3 {is a better defense.}) 40... Bg4 $1 $19 {[%emt 0:00:09]} 41. Qd5 {[%emt 0:00:06][%cal Ob2d4]} Bxf8 {[%emt 0:00:06]} ({Black should try} 41... Bxd1 $19 42. Rxd1 Bxf8 43. gxh3 Qe5) 42. Bxd4+ $2 {[%emt 0:01:21]} cxd4 {[%emt 0:00:02]} 43. Rb7 {[%emt 0:00:11]} Qe6 {[%emt 0:00:09][%mdl 8192]} ({Inferior is} 43... Bxd1 44. Rxe7 Bxe7 45. gxh3 $17) (43... Bd7 $19 44. gxh3 Qe6) 44. Qg5 $2 {[%emt 0:00:02]} (44. Rh7+ Kg8 {[#]} 45. Qg5 $1) 44... Qe5 $2 {[%emt 0:01:07] [#]} (44... Qg8 45. Rdb1 Rb4 46. R1xb4 axb4) 45. Qd8 $1 $18 {[%emt 0:00:45]} Qg7 {[%emt 0:00:14]} (45... h2+ 46. Kxh2) 46. Rxg7 {[%emt 0:00:02]} Kxg7 {[%emt 0:00:01] [#]} 47. Rc1 $1 {[%emt 0:00:04] White wants to mate with Qg5.} d3 {[%emt 0:00:25]} (47... Be6 48. Qg5) 48. Be8 {[%emt 0:00:50]} (48. Qg5 $142 Ra1 49. Rxa1 Bd7 50. Bf5+ Kf7 51. Bxd7 d2 52. Qxf4+ Ke7 53. Bxh3) 48... Nf7 {[%emt 0:03:20]} 49. Qc7 {[%emt 0:00:06] Weighted Error Value: White=0.44/Black=0.48} (49. Rc7 $142 Ra1+ 50. Kh2 Bh5 51. Qg5+ Kh8 52. Rxf7 Bxf7 53. Bxf7 Rh1+ 54. Kxh1 hxg2+ 55. Kg1 Kh7 56. Qg8+ Kh6 57. Qg6#) 1-0

[Event "Superbet Rapid Poland 2022"]
[Site "Warsaw"]
[Date "2022.05.21"]
[Round "8.3"]
[White "Anand, Viswanathan"]
[Black "Caruana, Fabiano"]
[Result "1/2-1/2"]
[ECO "C42"]
[WhiteElo "2751"]
[BlackElo "2786"]
[Annotator "TA"]
[PlyCount "53"]
[EventDate "2022.05.19"]
[EventType "tourn"]
[EventCountry "POL"]
[SourceTitle "playchess.com"]
[Source "ChessBase"]
[SourceQuality "1"]
[TimeControl "1500+10"]

{[%evp 15,53,25,29,19,16,16,12,12,13,14,20,14,16,10,11,12,18,20,24,21,17,7,24,0,0,0,0,0,8,0,0,0,0,0,0,0,0,0,0,0]} 1. e4 {[%emt 0:00:02]} e5 {[%emt 0:00:01]} 2. Nf3 {[%emt 0:00:02]} Nf6 {[%emt 0:00:02][%cal Bg8f6,Bf6e4,Be4d6][%mdl 32]} 3. Nxe5 {[%emt 0:00:10]} d6 {[%emt 0:00:02]} 4. Nf3 {[%emt 0:00:02]} Nxe4 {[%emt 0:00:02]} 5. d4 {[%emt 0:00:03]} d5 {[%emt 0:00:01]} 6. Bd3 {[%emt 0:00:02]} Bf5 {[%emt 0:00:02]} 7. O-O {[%emt 0:00:05]} Be7 {[%emt 0:00:02]} 8. Re1 {[%emt 0:00:09]} O-O {[%emt 0:00:03]} 9. Nbd2 $1 {[%emt 0:00:06][%cal Rd2e4][%mdl 4] is recently more successful than 9.c4. C42: Petroff Defence: 3 Nxe5 and unusual White 3rd moves.} Nd6 $1 {[%emt 0:00:03]} 10. Nf1 {[%emt 0:00:04]} c6 {[%emt 0:00:09]} 11. Bf4 {[%emt 0:00:06] [#] Black must now prevent Bxd6.} Bxd3 {[%emt 0:00:02]} 12. Qxd3 {[%emt 0:00:02]} Na6 {[%emt 0:00:02][%cal Bb8a6,Ba6c7,Bc7e6][%mdl 32]} 13. Re2 {[%emt 0:00:34]} Nc7 {[%emt 0:00:02]} 14. Rae1 {[%emt 0:00:03]} Ne6 {[%emt 0:00:15]} 15. Bxd6 {[%emt 0:00:04]} Bxd6 {[%emt 0:00:34]} 16. g3 {[%emt 0:00:04] Against Nf4} Qd7 {[%emt 0:00:53]} 17. Ne3 {[%emt 0:00:44]} Rae8 {[%emt 0:00:46] [#]} 18. Nf5 $146 {[%emt 0:00:56]} ({Predecessor:} 18. b3 Nc7 19. c4 Bb4 20. Ra1 f6 21. a3 Be7 22. Rae1 Bd8 23. Kg2 {½-½ (31) Anand,V (2767)-Yu,Y (2738) Stavanger 2019}) 18... Bc7 {[%emt 0:02:53]} (18... g6 $5 {[%cal Rg6f5]} 19. Nxd6 Qxd6 $11) 19. c3 {[%emt 0:02:57]} g6 {[%emt 0:02:34] The position is equal.} 20. N5h4 {[%emt 0:00:05]} f6 {[%emt 0:05:08]} 21. Nxg6 {[%emt 0:01:53]} hxg6 {[%emt 0:00:02] [#]} 22. Rxe6 $1 {[%emt 0:00:02]} Rxe6 {[%emt 0:00:02]} 23. Qxg6+ {[%emt 0:00:02]} Kh8 {[%emt 0:00:02] aiming for ...Rxe1+.} 24. Qh6+ {[%emt 0:00:07]} Kg8 {[%emt 0:00:01]} 25. Qg6+ {[%emt 0:00:02]} Kh8 {[%emt 0:00:01] Strongly threatening ...Rxe1+.} 26. Qh6+ {[%emt 0:00:04]} Kg8 {[%emt 0:00:01] ...Rxe1+ is the strong threat.} 27. Qg6+ {[%emt 0:00:03] An interesting draw.  Weighted Error Value: White=0.03 (flawless) /Black=0.01 (flawless)} 1/2-1/2

[Event "Superbet Rapid Poland 2022"]
[Site "Warsaw"]
[Date "2022.05.21"]
[Round "8.4"]
[White "Shevchenko, Kirill"]
[Black "Gavrilescu, David"]
[Result "1-0"]
[ECO "C00"]
[WhiteElo "2644"]
[BlackElo "2518"]
[Annotator "TA"]
[PlyCount "141"]
[EventDate "2022.05.19"]
[EventType "tourn"]
[EventCountry "POL"]
[SourceTitle "playchess.com"]
[Source "ChessBase"]
[SourceQuality "1"]
[TimeControl "1500+10"]

{[%evp 22,141,-32,-46,-37,-38,-33,-64,-21,-37,-17,-55,-41,-77,-39,-34,-30,-33,-25,-10,0,-70,-74,-132,-136,-135,-137,-206,-192,-235,-171,-158,-174,-334,-229,-242,-294,-292,-245,-224,-72,-113,-70,-56,-57,-20,0,0,0,0,-8,-8,-8,-640,-573,-606,-582,-551,0,0,274,253,254,-231,-231,-188,290,290,282,259,255,-925,269,279,265,261,191,45,46,0,175,200,200,199,192,192,189,0,0,0,0,0,1853,1733,606,437,410,366,460,460,1289,914,1077,4133,3709,0,4133,3078,1941,1941,1795,1085,4766,1943,29979,29980,29980,29981,29981,29982,29984,29982]} 1. Nf3 {[%emt 0:00:03]} d5 {[%emt 0:00:03]} 2. g3 {[%emt 0:00:04]} Nf6 {[%emt 0:00:55]} 3. Bg2 {[%emt 0:00:02]} e6 {[%emt 0:00:02]} 4. O-O {[%emt 0:00:10]} Be7 {[%emt 0:00:19]} 5. d3 {[%emt 0:00:06]} O-O {[%emt 0:00:04]} 6. Nbd2 {[%emt 0:00:04]} c5 {[%emt 0:00:03]} 7. e4 {[%emt 0:00:03]} Nc6 {[%emt 0:00:02]} 8. Re1 {[%emt 0:00:29]} Qc7 {[%emt 0:00:03]} 9. e5 {[%emt 0:00:24]} Nd7 {[%emt 0:00:03]} 10. Qe2 {[%emt 0:00:01]} b5 {[%emt 0:00:06]} 11. Nf1 {[%emt 0:00:14]} Bb7 {[%emt 0:00:04]} 12. h4 {[%emt 0:01:03]} Rfc8 {[%emt 0:00:12] C00: French: Unusual White 2nd moves.} 13. Bf4 {[%emt 0:00:44]} a5 {[%emt 0:01:54]} 14. N1h2 {[%emt 0:06:59] 14.h5 deserves study.} h6 {[%emt 0:01:23] Black is slightly better.} 15. Ng4 {[%emt 0:00:48]} Bf8 {[%emt 0:00:16]} 16. Qd2 {[%emt 0:03:55][%cal Rf4h6]} Qd8 {[%emt 0:00:05] [#]} 17. Rad1 $146 {[%emt 0:01:39][%cal Oc2c4]} ({Predecessor:} 17. h5 Kh7 18. Nh4 Ne7 19. c4 Qb6 20. Bxh6 gxh6 21. Qf4 Kg8 22. Nxh6+ Bxh6 23. Qxh6 bxc4 {1-0 (36) Greger,R (2277)-Brondt,N (2217) Denmark 2021}) 17... b4 {[%emt 0:00:52]} 18. c4 {[%emt 0:00:39]} bxc3 {[%emt 0:01:19]} 19. bxc3 {[%emt 0:00:02]} a4 {[%emt 0:00:44][%cal Ba5a4,Ba4a3][%mdl 32]} 20. c4 {[%emt 0:01:01]} Ne7 {[%emt 0:01:14]} 21. h5 {[%emt 0:01:34]} (21. Bxh6 $11 gxh6 22. Nxh6+ Bxh6 23. Qxh6) 21... Rcb8 {[%emt 0:05:16]} 22. Re2 {[%emt 0:03:58]} (22. Qe2 $142) 22... a3 $17 {[%emt 0:01:36]} 23. Qc1 {[%emt 0:00:10]} Bc6 {[%emt 0:01:38]} 24. Ngh2 {[%emt 0:00:51]} (24. Rde1 $17) 24... Rb4 $19 {[%emt 0:03:22]} 25. g4 {[%emt 0:00:59]} Nb6 {[%emt 0:01:47]} 26. g5 {[%emt 0:00:52][%cal Rg5h6]} dxc4 {[%emt 0:00:33]} 27. d4 {[%emt 0:01:38]} (27. dxc4 Rxc4 28. Rxd8 Rxc1+ 29. Bxc1 Rxd8 30. gxh6) 27... Rb2 {[%emt 0:02:21]} 28. Rxb2 {[%emt 0:00:25]} axb2 {[%emt 0:00:02]} 29. Qxb2 {[%emt 0:00:01]} Nbd5 {[%emt 0:00:31]} 30. Qc1 {[%emt 0:00:49][%cal Rg5h6]} Rxa2 $2 {[%emt 0:01:43]} (30... c3 $19 {is more deadly.} 31. gxh6 gxh6 32. Bxh6 Bxh6 33. Qxh6 Nf5) 31. gxh6 $17 {[%emt 0:00:09]} gxh6 {[%emt 0:00:14]} 32. Ng4 $1 {[%emt 0:00:05]} Nf5 {[%emt 0:00:02] And now ...c3 would win.} (32... c3 $5 {[%cal Rc3c2]} 33. Bxh6 (33. Nxh6+ $2 Bxh6 34. Bxh6 Nf5 $19) 33... Nf5 $17) 33. Bxh6 {[%emt 0:00:22]} Ba4 {[%emt 0:00:32]} 34. Bg5 {[%emt 0:00:08]} Qa5 {[%emt 0:00:44]} 35. Re1 {[%emt 0:00:04]} (35. Rd2 Bb5 36. Rxa2 Qxa2 37. Nf6+ Nxf6 38. Bxf6 Bc6) 35... Rc2 {[%emt 0:00:03]} 36. Qa1 {[%emt 0:00:06]} cxd4 {[%emt 0:00:04]} 37. Nf6+ $2 {[%emt 0:00:18][%mdl 8192]} (37. Rb1 $11 c3 38. Rb8) 37... Nxf6 $19 {[%emt 0:00:06]} 38. Bxf6 {[%emt 0:00:01]} d3 {[%emt 0:00:24]} 39. Re4 {[%emt 0:00:18]} d2 $2 {[%emt 0:00:01]} (39... Bh6 $1 $19 40. Rg4+ Kh7) 40. Rg4+ $11 {[%emt 0:00:13]} Bg7 $2 {[%emt 0:00:01][%mdl 8192]} (40... Kh7 $1 $11 {and Black is okay.} 41. Ng5+ Kh6 42. Nxf7+ Kh7 43. Ng5+ Kg8 44. Nxe6+ Kf7 45. Ng5+ Ke8) 41. Kh2 $1 $18 {[%emt 0:00:17]} Rc1 {[%emt 0:00:16]} 42. Rxg7+ $4 {[%emt 0:00:06][%mdl 8192]} Nxg7 $19 {[%emt 0:00:03]} 43. Qd4 {[%emt 0:00:02] Qg4 is the strong threat.} Nf5 $4 {[%emt 0:00:54][%mdl 8192]} (43... Nxh5 44. Qg4+ Kf8 45. Qxh5 Ke8 46. Ng5 Qc7 47. Ne4) (43... d1=Q $19 {Hoping for ...Qxd4.} 44. Qg4 Kf8 $1) 44. Qg4+ $18 {[%emt 0:00:15]} Kf8 {[%emt 0:00:00]} 45. h6 $1 {[%emt 0:00:12][%mdl 64] Deflection, Decoy} Nxh6 {[%emt 0:00:15]} (45... d1=Q $2 46. h7 Ke8 47. Qg8+ Kd7 48. Qxf7+ Kc6 49. h8=Q $18) 46. Qg7+ {[%emt 0:00:01]} Ke8 {[%emt 0:00:01]} 47. Nxd2 {[%emt 0:00:15] The board is on fire.} Kd7 {[%emt 0:00:23]} (47... Ng4+ $2 48. Qxg4 Kd7 49. Qg8 $1 $18) 48. Qxh6 {[%emt 0:00:06][%cal Oh6f8]} Bc6 {[%emt 0:00:10] [#]} 49. Ne4 $40 {[%emt 0:00:11][%mdl 128] Black needs to defend precisely.} (49. Nf3 $1 $18 Rc3 {[#]} 50. Qf8 $1 Bxf3 51. Bxf3 (51. Qxf7+ Kc8 $11) 51... Rxf3 52. Qd6+ (52. Qxf7+ Kc8 $11) 52... Kc8 53. Qc6+ Qc7 54. Qxf3) 49... Qe1 $14 {[%emt 0:00:10]} 50. Qf8 {[%emt 0:00:19]} Bxe4 $2 {[%emt 0:00:11]} (50... Qg1+ $1 $11 51. Kh3 Rc3+ 52. f3 (52. Nxc3 Bxg2+ 53. Kg4 Bd5+ 54. Kh4 Qxf2+ 55. Kh5 Qh2+ 56. Kg4 Qg1+ 57. Kh4 Qf2+ 58. Kh5 Qf5+ 59. Kh4 Qf4+ 60. Kh3 Qf3+ 61. Kh4 Qf4+ 62. Kh3 Qe3+ 63. Kh4 Qf4+ $17) 52... Bxe4 53. Qd6+ (53. Qxf7+ Kc6 $11) 53... Kc8 54. Qf8+ Kc7 55. Qd6+ Kc8 56. Qf8+ Kc7 57. Qd6+ Kc8) 51. Qd8+ $18 {[%emt 0:00:12]} Kc6 {[%emt 0:00:02] ( -> ...Qg1+)} 52. Bxe4+ {[%emt 0:00:01] This bishop pair is nice.} Kb5 {[%emt 0:00:03]} 53. Qb8+ {[%emt 0:00:18]} Ka4 {[%emt 0:00:07]} 54. Qa7+ {[%emt 0:00:11]} (54. Bc6+ $18 Ka3 55. Be7+ Ka2 56. Qa8+ Kb2 57. Ba3+ Kc2 58. Be4+ Kc3 59. Bxc1 Qxc1 60. Kg2 (60. Qa5+ Kd4 $16)) 54... Kb3 $11 {[%emt 0:00:05]} 55. Qb7+ {[%emt 0:00:07]} Qb4 {[%emt 0:00:07] aiming for ...Qxb7.} 56. Qxf7 {[%emt 0:00:04]} c3 $2 {[%emt 0:00:33][%mdl 8192]} ({Don't play} 56... Qe1 57. Qb7+ Kc3 58. Kg3 $11) (56... Re1 $11 57. Be7 Qb5) 57. Qxe6+ $18 {[%emt 0:00:03]} Kb2 {[%emt 0:00:00]} 58. Qf5 {[%emt 0:00:10] Strongly threatening e6.} Re1 {[%emt 0:00:07]} 59. Bd3 {[%emt 0:00:23]} Qb7 {[%emt 0:00:02]} 60. e6 {[%emt 0:00:14] Threatens to win with Kg3.} ({Less strong is} 60. Kg3 Rg1+ 61. Kf4 Qg2 $18) 60... Qh1+ {[%emt 0:00:06]} (60... Qc6 $142 61. e7 Kb3) 61. Kg3 {[%emt 0:00:01]} Qg1+ {[%emt 0:00:18]} 62. Kf3 {[%emt 0:00:01]} (62. Kh3 $142 Qh1+ 63. Kg3 Qg1+ 64. Kh4 Qh1+ 65. Kg4 Qg2+ 66. Kh5 Rh1+ 67. Bh4) 62... Qh1+ {[%emt 0:00:01]} 63. Kg3 {[%emt 0:00:17] White threatens Qb5+ and mate.} Qg1+ $1 {[%emt 0:00:03]} 64. Kh3 {[%emt 0:00:16] Intending Qb5+ and mate.} Qh1+ {[%emt 0:00:02]} 65. Kg4 {[%emt 0:00:01] Threatening mate with Qb5+.} Qg2+ {[%emt 0:00:09]} 66. Kh5 {[%emt 0:00:04]} Rh1+ {[%emt 0:00:49]} 67. Bh4 {[%emt 0:00:00] Qb5+ would kill now.} Qb7 {[%emt 0:00:21]} 68. Be4 {[%emt 0:00:07] White mates.} Rxh4+ {[%emt 0:00:18]} 69. Kxh4 {[%emt 0:00:01]} Qe7+ {[%emt 0:00:02]} 70. Kg4 {[%emt 0:00:06]} Qg7+ {[%emt 0:00:02]} 71. Kf3 {[%emt 0:00:03] Both players deserved the win here.  Weighted Error Value: White=0.38/Black=0.50} 1-0